Cogmind - Beta 15 *** ADVENTURER MODE // 2025.08.12 @ 14:59:15 Player: anung_un_rama Result: Self-destructed Performance ------------- Evolutions (8) 4000 Regions Visited (13) 2600 Robots Destroyed (383) 1915 Value Destroyed (18874) 18874 Prototype IDs (38) 760 Alien Tech Used (0) 0 Bonus (4872) 4872 TOTAL SCORE: 33021 Bonus ------- High Alert Combat Kills 3702 Follower Combat Kills 670 Scanned by Researcher 500 Cogmind --------- Core Integrity 586/1450 Matter 95/300 Energy 585/600 System Corruption 43% Temperature Cool (99) Movement Walking (120) Location -2/Research Parts ------- > --- POWER (2) -------- (None) > --- PROPULSION (6) --- Medium Treads Flexi-carbon Leg Myomer Leg Myomer Leg Myomer Leg > --- UTILITY (11) ----- Experimental Power Amplifier Advanced Energy Well Advanced Targeting Computer > --- WEAPON (4) ------- Graviton Cannon Graviton Cannon Graviton Cannon Vibroblade > --- INVENTORY (5) ---- Experimental Biometal Medium Treads Experimental Biometal Medium Treads Experimental Biometal Medium Treads High-powered Tractor Beam Peak State ------------ > --- POWER ------------ Quantum Reactor Light Quantum Reactor > --- PROPULSION ------- Improved Heavy Treads Experimental Biometal Medium Treads Experimental Biometal Medium Treads Experimental Biometal Medium Treads High-density Centrium Leg > --- UTILITY ---------- Experimental Power Amplifier Advanced Heat Sink Experimental Heat Sink Advanced Coolant Injector Large Storage Unit Advanced Energy Well Advanced Targeting Computer Core Analyzer Core Analyzer Layered Heavy Armor Plating > --- WEAPON ----------- Enhanced Nova Cannon Compact Mass Driver Enhanced Hardcell Cannon Graviton Cannon > --- INVENTORY -------- Experimental Biometal Medium Treads Flexi-carbon Leg Flexi-carbon Leg Myomer Leg Biometal Leg Experimental Power Amplifier Quantum Capacitor High-powered Tractor Beam Long-range Tractor Beam Compact HERF Cannon Graviton Cannon Graviton Cannon Graviton Cannon Vibroblade [Rating: 180] Favorites ----------- Power Reinforced Fission Core Engine Improved Ion Engine Power Core Reinforced Fission Core Reactor Light Antimatter Reactor Propulsion Myomer Leg Treads Experimental Biometal Medium Treads Leg Myomer Leg Hover Unit Improved Airjet Flight Unit Cesium-ion Thruster Utility Advanced Heat Sink Device Advanced Heat Sink Storage Medium Storage Unit Processor Core Analyzer Hackware Hacking Suite Protection Propulsion Shielding Weapon Enhanced Nova Cannon Energy Gun Enhanced Quantum Rifle Energy Cannon Enhanced Nova Cannon Ballistic Gun Autogun Ballistic Cannon Compact Mass Driver Launcher Micro-nuke Launcher Impact Weapon Hammer Slashing Weapon Chainsword Piercing Weapon Lance Build | -11 -10 -9 -8 -7 -6 -6 -6 -5 -4 -4 -3 -3 -2 ------- Run | Yrd Mat Mat Mat Fac Fac Low Low Fac Fac Arm Res Tes Res Slots Evolved 16 | . . 2 2 2 2 . . 2 2 . 2 . 2 Power 1 | . . . . 1 . . . . . . . . . Propulsion 4 | . . 1 1 . . . . 1 1 . . . . Utility 9 | . . 1 1 1 2 . . 1 1 . . . 2 Weapon 2 | . . . . . . . . . . . 2 . . Parts Attached 296 | 9 . 19 4 24 9 6 . 20 29 78 19 22 57 Power 39 | 1 . 3 1 5 2 2 . 3 4 11 . 1 6 Engine 9 | 1 . 3 . 2 1 1 . . . . . . 1 Core 12 | . . . 1 3 1 . . 1 . 6 . . . Reactor 18 | . . . . . . 1 . 2 4 5 . 1 5 Propulsion 109 | 4 . 7 1 9 2 1 . 12 9 30 6 7 21 Treads 11 | 2 . . . . . . . . 1 . . . 8 Leg 57 | 2 . . . . . . . . 7 22 6 7 13 Wheel . | . . . . . . . . . . . . . . Hover 29 | . . 7 1 7 2 1 . 5 1 5 . . . Flight 12 | . . . . 2 . . . 7 . 3 . . . Utility 104 | 2 . 4 2 8 4 3 . 4 12 27 9 10 19 Device 52 | 1 . . . 2 2 . . 3 8 12 7 6 11 Storage 9 | 1 . 1 . . . . . . . 3 . 2 2 Processor 12 | . . . 1 2 . 1 . . . 5 1 1 1 Hackware 6 | . . . . 1 1 . . . 2 1 . . 1 Protection 25 | . . 3 1 3 1 2 . 1 2 6 1 1 4 Artifact . | . . . . . . . . . . . . . . Weapon 44 | 2 . 5 . 2 1 . . 1 4 10 4 4 11 Energy Gun 6 | 2 . . . . . . . . . 4 . . . Energy Cannon 11 | . . . . . . . . . . 2 3 2 4 Ballistic Gun 4 | . . 3 . . 1 . . . . . . . . Ballistic Cannon 8 | . . . . . . . . . . . 1 2 5 Launcher 4 | . . . . . . . . . . 3 . . 1 Special Weapon . | . . . . . . . . . . . . . . Impact Weapon 2 | . . 1 . . . . . . . 1 . . . Slashing Weapon 5 | . . 1 . 2 . . . 1 . . . . 1 Piercing Weapon 4 | . . . . . . . . . 4 . . . . Special Melee Weapon . | . . . . . . . . . . . . . . Unidentified Prototypes 30 | . . 1 . 4 3 . . 2 2 3 1 9 5 Corrupted Parts 11 | 1 . . . . . . . . . 2 . 2 6 System Corruption 28 | 1 . . . . . . . . . 5 . 4 18 Parts Lost 142 | . . 1 1 7 4 3 . 19 15 42 6 9 35 Power 15 | . . . . 1 1 1 . 2 1 5 . . 4 Propulsion 47 | . . 1 . 1 2 . . 10 6 17 2 3 5 Utility 61 | . . . 1 5 1 2 . 6 6 17 3 4 16 Weapon 19 | . . . . . . . . 1 2 3 1 2 10 Highest Loss Streak 14 | . . 1 1 4 4 1 . 6 14 10 3 4 12 To Critical Strikes 2 | . . . . . . . . . . 1 . . 1 Average Backups 8 | 3 4 7 9 9 9 9 9 8 5 7 8 9 9 Power . | . 1 1 1 . . . . . . 1 1 1 . Propulsion 2 | 1 2 1 1 4 3 3 4 3 . 2 4 3 3 Utility 2 | . . 2 4 2 2 2 2 2 2 1 1 1 2 Weapon 2 | . 1 1 1 1 2 3 3 2 2 1 1 2 3 Tool/Special . | . . . . . . . . . . . . . . Unused Backups 49 | . . 8 3 8 3 4 . 2 2 9 3 3 4 Power 4 | . . 1 . . . . . 2 . 1 . . . Propulsion 15 | . . 1 . 5 . 1 . . 1 2 1 2 2 Utility 16 | . . 4 1 2 1 2 . . 1 . 2 1 2 Weapon 13 | . . 2 2 1 1 1 . . . 6 . . . Tool/Special 1 | . . . . . 1 . . . . . . . . Average Slot Usage (%) 89 | . 100 94 98 96 91 92 93 86 73 85 99 92 87 Engine 1 | . 14 11 3 7 5 3 . . . . . . . Core 4 | . . . 5 6 2 2 . 1 . 6 9 4 2 Reactor 2 | . . . . . . . 6 4 7 1 . 3 5 Leg 15 | . 28 3 . . . . . . 16 21 27 27 18 Hover 9 | . . 26 35 29 23 26 26 20 . 4 . . . Device 14 | . 14 10 6 4 6 . . 7 12 18 22 20 18 Storage 6 | . 14 11 9 7 6 6 6 5 1 3 9 9 7 Processor 8 | . . . 8 7 13 13 13 11 10 8 7 7 9 Hackware 2 | . . . . 6 8 6 6 5 6 1 . . . Protection 5 | . . 9 12 8 8 17 20 12 . 5 1 1 2 Energy Gun 1 | . 28 2 . . . . . . . 2 . . . Energy Cannon 4 | . . . . . . . . . . 2 18 9 7 Ballistic Cannon 1 | . . . . . . . . . . . . 3 6 Slashing Weapon 4 | . . 7 9 12 12 13 13 11 . 2 . . . Peak Build Rating 180 | 7 7 23 31 52 60 62 57 73 106 124 136 156 180 Average Rating 91 | 5 7 16 29 44 52 55 56 59 74 94 128 136 158 On Entrance 59 | . 7 7 22 30 51 54 50 57 52 106 118 126 154 Naked Turns . | . . . . . . . . . . . . . . Heaviest Build 136 | 13 13 23 23 33 40 49 35 49 43 90 121 115 136 Greatest Support 235 | 40 20 24 32 36 36 38 38 51 133 143 145 164 235 Greatest Overweight (x) 4 | . . 3 . 3 1 1 . 2 2 2 1 1 4 Average Overweight (x) . | . . . . . . . . . . . . . . Largest Inventory Capacity 15 | 8 8 10 10 10 10 10 10 10 10 10 10 10 15 Average Capacity 9 | 7 8 8 10 10 10 10 10 10 6 8 10 10 13 Most Carried 15 | 4 5 10 10 10 10 10 10 10 10 10 10 10 15 Average Carried 8 | 3 4 7 9 9 9 9 9 8 5 7 8 9 9 Final Capacity 10 | 8 8 10 10 10 10 10 10 10 5 10 10 10 5 Final Carried 10 | 4 5 9 10 10 10 10 10 5 5 9 10 10 4 Class Distribution -------------------- 43% | Scavenger-Mutant 30% | Scavenger-Gunner 8% | Hacker-Mutant 7% | Scavenger-Gladiator 6% | Mutant Dominant Class ---------------- Mutant | -10/Materials Mutant | -9/Materials Scavenger-Gladiator | -8/Materials Scavenger-Mutant | -7/Factory Scavenger-Mutant | -6/Factory Hacker-Mutant | -6/Lower Caves Scavenger-Mutant | -6/Lower Caves Scavenger-Mutant | -5/Factory Scavenger-Mutant | -4/Factory Scavenger-Mutant | -4/Armory Scavenger-Gunner | -3/Research Scavenger-Gunner | -3/Testing Scavenger-Gunner | -2/Research Resources | -11 -10 -9 -8 -7 -6 -6 -6 -5 -4 -4 -3 -3 -2 ----------- Run | Yrd Mat Mat Mat Fac Fac Low Low Fac Fac Arm Res Tes Res Matter Collected 8267 | 279 . 333 150 371 135 109 20 313 312 1045 363 2200 2637 Remotely 3102 | . . . . . . . . . . . . 1445 1657 Salvage Created 21983 | 79 . 888 429 2144 456 582 45 1091 1626 4103 2209 3443 4888 Parts 844 | 7 . 54 18 98 15 28 5 43 56 125 85 144 166 Haulers Intercepted 15 | . . 3 . 1 1 . . . 2 . 2 2 4 Recyclers Shooed 3 | . . . . 1 . . . . . . . . 2 Parts Field Recycled . | . . . . . . . . . . . . . . Retrieved Matter . | . . . . . . . . . . . . . . Parts Self-Destructed 24 | . . . . . . 21 3 . . . . . . Prevented . | . . . . . . . . . . . . . . Kills | -11 -10 -9 -8 -7 -6 -6 -6 -5 -4 -4 -3 -3 -2 ------- Run | Yrd Mat Mat Mat Fac Fac Low Low Fac Fac Arm Res Tes Res Combat Hostiles Destroyed 265 | . . 13 4 24 5 9 2 16 10 57 21 34 70 Melee 98 | . . 5 4 24 5 9 2 16 10 23 . . . Guns 19 | . . 6 . . . . . . . 13 . . . Cannons 119 | . . . . . . . . . . 17 15 31 56 AOE 13 | . . 1 . . . . . . . . . 1 11 Classes Destroyed 22 | 1 . 8 2 4 . 1 . . . 1 . 1 4 Worker 25 | . . 1 . 4 . . . . 1 . 4 8 7 Builder 12 | . . . . 2 1 . . . 1 . . 3 5 Tunneler 7 | 4 . . . . 1 . . 2 . . . . . Hauler 15 | . . 3 . 1 1 . . . 2 . 2 2 4 Recycler 24 | . . 2 1 6 . . . 3 4 . 2 2 4 Mechanic 4 | . . . 1 . . . . . . . . 2 1 Operator 7 | . . . 1 2 . . . . 1 . . 1 2 Watcher 20 | . . 3 1 4 . . . 2 2 4 1 . 3 Swarmer 22 | . . 5 . . . 1 2 10 . 1 . . 3 Saboteur 1 | . . . . . . . . . . . . . 1 Grunt 124 | . . 4 3 14 3 6 . 3 3 24 10 19 35 Brawler 8 | . . . . 1 1 . . . . 2 . . 4 Duelist 7 | . . 1 . . . 1 . . . 4 . . 1 Protector 2 | . . . . . . . . . . . . . 2 Researcher 3 | . . . . . . . . . . . . 3 . Sentry 23 | . . 3 1 4 1 1 . 1 3 5 2 . 2 Specialist 3 | . . . . . . . . . . 3 . . . Hunter 29 | . . . . 1 . . . . 2 3 5 9 9 Programmer 44 | . . . . 4 . . . 2 2 16 4 5 11 Q-Series 1 | . . . . . . . . . . . . . 1 Behemoth 1 | . . . . . . . . . . . . . 1 Protovariant X 1 | . . . . . . . . . . . . 1 . Samaritan 1 | . . . . . . 1 . . . . . . . Best Kill Streak 28 | 2 . 6 7 14 2 3 2 8 7 5 8 28 16 Combat Bots Only 12 | . . 3 3 5 2 3 2 7 4 5 4 9 12 Max Kills in Single Turn 6 | 1 . 1 1 2 1 1 1 1 1 2 2 6 4 Gunslinging . | . . . . . . . . . . . . . . Exploded 4 | . . 1 . . . . . . . . . 1 4 Melee 2 | . . 1 1 2 1 1 1 1 1 1 . . . Uniques/NPCs Destroyed . | . . . . . . . . . . . . . . Combat | -11 -10 -9 -8 -7 -6 -6 -6 -5 -4 -4 -3 -3 -2 -------- Run | Yrd Mat Mat Mat Fac Fac Low Low Fac Fac Arm Res Tes Res Hostile Shots Fired 2432 | . . 62 18 213 59 85 3 138 174 509 188 190 793 Missed 756 | . . 14 6 73 21 25 3 48 46 156 73 67 224 Hits 1676 | . . 48 12 140 38 60 . 90 128 353 115 123 569 Melee 60 | . . 2 . 4 2 3 . 1 . 25 . . 23 Projectile 1616 | . . 46 12 136 36 57 . 89 128 328 115 123 546 AOE 1 | . . . . . . . . . . 1 . . . Critical Strikes 79 | . . . . 7 1 3 . . 7 22 6 7 26 Actively Blocked 2 | . . . . 1 . 1 . . . . . . . Part Disruptions 2 | . . . . . . . . 1 . . . . 1 Damage Taken 26451 | . . 497 156 1627 351 798 . 1593 2173 5412 1924 1801 10119 Core 3272 | . . 76 24 278 72 100 . 356 463 626 226 187 864 Absorbed by Shields 1561 | . . . . . 128 24 . . . . . . 1409 Reduced by Siege Mode 101 | . . . . . . . . . . . . . 101 Redirected to Shielding 362 | . . 45 26 79 . 56 . 61 . 95 . . . Ignored by Resistances 8054 | . . 149 44 407 131 228 . 449 609 1967 485 517 3068 Regen/Repaired (Parts) 482 | . . 77 30 170 133 . . . 72 . . . . Core Remaining (%) 72 | 100 100 81 95 60 . . 79 64 . 5 . 68 . Volleys Fired 403 | 12 2 25 . . . . . . . 100 58 47 159 Largest 4 | 2 2 2 . . . . . . . 2 4 4 4 Hottest 480 | 80 80 80 . . . . . . . 240 480 454 388 Shots Fired 910 | 24 4 47 . . . . . . . 199 174 101 361 Gun 198 | 24 4 47 . . . . . . . 123 . . . Cannon 708 | . . . . . . . . . . 76 174 101 357 Launcher 4 | . . . . . . . . . . . . . 4 Special . | . . . . . . . . . . . . . . Kinetic 289 | . . 33 . . . . . . . . . 45 211 Thermal 497 | . . . . . . . . . . 199 167 29 102 Explosive 4 | . . . . . . . . . . . . . 4 Electromagnetic 120 | 24 4 14 . . . . . . . . 7 27 44 Robot Hit Streak 39 | 6 1 9 . . . . . . . 39 22 22 32 Robot Miss Streak 11 | 2 1 1 . . . . . . . 3 2 11 3 Penetration Max 3 | . . . . . . . . . . . . 3 1 Secondary Targets 4 | . . 1 . . . . . . . 3 . . . Max Gunslinging Chain 1 | . . 1 . . . . . . . 1 . . . Capacitor 9 | . . . . . . . . . . 9 . . . Shots Hit Robots 1091 | 15 2 58 23 97 29 25 3 61 60 262 122 74 260 Core Hits 625 | 4 . 25 10 44 13 13 2 27 32 108 46 131 170 Critical Kills 66 | . . . . . . . . . . 3 6 50 7 Critical Parts Destroyed 64 | . . 2 . . . . . . . 3 . 55 4 Critical Strikes 204 | . . 6 . 12 8 6 . 6 6 20 6 105 29 Meltdown 15 | . . . . . . . . . . 3 6 2 4 Destroy 110 | . . . . . . . . . . . . 103 7 Blast 16 | . . . . . . . . . . . . . 16 Corrupt 1 | . . . . . . . . . . . . . 1 Smash 5 | . . 2 . . . . . . . 3 . . . Sever 50 | . . 4 . 12 8 6 . 6 . 13 . . 1 Impale 7 | . . . . . . . . . 6 1 . . . Melee Attacks 548 | . . 42 31 120 34 32 3 90 65 129 . . 2 Impact 21 | . . 5 3 2 . . . . . 11 . . . Slashing 449 | . . 37 28 118 34 32 3 90 . 105 . . 2 Piercing 78 | . . . . . . . . . 65 13 . . . Sneak Attacks 48 | . . 5 2 15 4 1 . 8 9 4 . . . Combat Hostiles 1 | . . 1 . . . . . . . . . . . Follow-up Attacks 51 | . . 2 1 12 2 3 1 10 10 10 . . . Damage Inflicted 50643 | 235 40 1455 835 4259 1212 1020 126 2538 2767 9851 5612 2426 18267 Guns 4049 | 235 40 438 . . . . . . . 3336 . . . Cannons 23706 | . . . . . . . . . . 2496 5608 2147 13455 Explosions 5020 | . . 31 . . . . . . . . . 279 4710 Melee 17836 | . . 986 835 4259 1212 1020 126 2538 2767 4019 . . 74 Ramming 32 | . . . . . . . . . . . 4 . 28 Kinetic 7522 | . . 321 . . . . . . . . . 715 6486 Thermal 20106 | . . 31 . . . . . . . 5832 5263 1048 7932 Explosive 2119 | . . . . . . . . . . . . . 2119 Electromagnetic 3028 | 235 40 117 . . . . . . . . 345 663 1628 Impact 489 | . . 46 26 . . . . . . 417 . . . Slashing 14115 | . . 940 809 4259 1212 1020 126 2538 . 3137 . . 74 Piercing 3232 | . . . . . . . . . 2767 465 . . . Highest Corruption 40 | 1 1 . . 13 3 3 3 6 . 25 1 7 40 Average Corruption 12 | 1 1 . . 11 2 3 3 3 . 15 1 2 22 Corruption Purged . | . . . . . . . . . . . . . . Corruption Blocked . | . . . . . . . . . . . . . . Effects 255 | . 1 . . 25 2 13 . . . 95 2 13 104 Message Errors 63 | . . . . 6 . 4 . . . 34 1 3 15 Matter Fused 58 | . . . . 10 . 2 . . . 23 . 5 18 Heat Flow Errors 33 | . . . . 2 1 3 . . . 12 . . 15 Energy Discharges 27 | . . . . 1 . 3 . . . 10 . 2 11 Parts Rejected 1 | . . . . . . . . . . . . . 1 Parts Fused 1 | . . . . 1 . . . . . . . . . Data Loss (minor) 18 | . 1 . . 3 . . . . . 2 1 . 11 Data Loss (major) 13 | . . . . 1 . 1 . . . 2 . 2 7 Misfires 10 | . . . . . . . . . . 5 . 1 4 Alerts 4 | . . . . . 1 . . . . 1 . . 2 Misdirections 3 | . . . . 1 . . . . . . . . 2 Weapon Failures 24 | . . . . . . . . . . 6 . . 18 Overload Shots . | . . . . . . . . . . . . . . Overflow Damage 2546 | . . 85 67 381 25 57 21 244 273 238 160 96 899 Projectiles 905 | . . . . . . . . . . 56 160 33 656 Explosions 306 | . . . . . . . . . . . . 63 243 Melee 1335 | . . 85 67 381 25 57 21 244 273 182 . . . Knockbacks 88 | . . . . . . . . . . 2 . 28 58 Impact 2 | . . . . . . . . . . 2 . . . Kinetic 78 | . . . . . . . . . . . . 27 51 Secondary 8 | . . . . . . . . . . . . 1 7 Self-Inflicted Damage 513 | . . 28 . . . . . . . . . . 485 Shots 8 | . . 1 . . . . . . . . . . 7 Rammed 1 | . . . . . . . . . . . . . 1 Targets Rammed 4 | . . . . . . . . . . . 1 . 3 Kicked 3 | . . . . . . . . . . . 1 . 2 Crushed . | . . . . . . . . . . . . . . Highest Temperature 663 | 90 18 75 1 211 207 217 . 6 19 547 636 183 663 Average Temperature 122 | 36 12 17 1 108 106 82 . 4 7 115 154 45 151 Received Heat Transfer 5423 | . . 144 99 654 164 312 . 195 451 925 271 358 1850 Effects 51 | . . . . . . . . . . 5 18 . 28 Shutdowns 14 | . . . . . . . . . . 4 4 . 6 Energy Bleed 2 | . . . . . . . . . . 1 1 . . Interference 10 | . . . . . . . . . . . 7 . 3 Matter Decay 5 | . . . . . . . . . . . 3 . 2 Short Circuit 5 | . . . . . . . . . . . 2 . 3 Damage (minor) 4 | . . . . . . . . . . . . . 4 Damage (major) 10 | . . . . . . . . . . . . . 10 Damage (core) 1 | . . . . . . . . . . . 1 . . Siege Activations 3 | . . . . . . . . . . . . . 3 Total Turns 53 | . . . . . . . . . . . . . 53 Longest Duration 28 | . . . . . . . . . . . . . 28 Martial Activations . | . . . . . . . . . . . . . . Shielding Activations . | . . . . . . . . . . . . . . Robots Disrupted . | . . . . . . . . . . . . . . Combat Hostiles . | . . . . . . . . . . . . . . Robots Corrupted 4 | . . 1 . . . . . . . 2 . . 1 Combat Hostiles 3 | . . 1 . . . . . . . 1 . . 1 Parts Fried 23 | 3 . 2 . . . . . . . 2 1 5 10 Impact Corruptions 10 | . . 3 . . . . . . . 7 . . . Robots Melted 15 | . . . . . . . . . . 3 6 2 4 Combat Hostiles 13 | . . . . . . . . . . 3 6 2 2 Parts Melted 53 | . . . . . . . . . . 26 15 4 8 Heat Transferred 16952 | . . . . . . . . . . 5735 4477 816 5924 Parts Sabotaged 11 | . . . . . . . . . . 8 . . 3 Parts Stolen . | . . . . . . . . . . . . . . Parts Stripped . | . . . . . . . . . . . . . . Power Chain Reactions 2 | . . 1 . . . . . . . . . 1 . Alert | -11 -10 -9 -8 -7 -6 -6 -6 -5 -4 -4 -3 -3 -2 ------- Run | Yrd Mat Mat Mat Fac Fac Low Low Fac Fac Arm Res Tes Res Maximum Alert Level 5 | . . 1 . 2 1 . . . . 2 1 3 5 Low Security (%) 56 | 100 100 99 100 28 4 . . 100 100 81 32 25 . Level 1 18 | . . . . 30 95 . . . . 13 67 19 5 Level 2 8 | . . . . 41 . . . . . 4 . 17 18 Level 3 9 | . . . . . . . . . . . . 37 38 Level 4 6 | . . . . . . . . . . . . . 37 Level 5 . | . . . . . . . . . . . . . 1 High Security . | . . . . . . . . . . . . . . Max Security . | . . . . . . . . . . . . . . Peak Influence 1617 | 10 . 196 125 481 290 . . 138 68 530 295 919 1617 Initial 406 | . . . 46 28 202 . . 70 29 8 231 122 406 Average 310 | . . 105 84 276 254 . . 61 17 101 213 515 998 Influence Increases 9600 | 20 . 507 168 910 284 305 55 530 371 2132 749 1139 2430 Destroy 0b10 Robot/C 5580 | . . 260 80 480 100 180 40 320 200 1340 480 740 1360 Destroy 0b10 Robot/NC 580 | 20 . 45 20 95 15 . . 35 55 20 45 90 140 Destroy Leader 1106 | . . 72 22 150 32 20 . 54 58 238 104 102 254 Allied During Kill 155 | . . . . . . . . . . 108 47 . . Successful Hack 127 | . . 10 10 30 . . . . 13 38 . 14 12 Disable Machine 189 | . . . . . . . . . . 72 . 36 81 Destroy Structure 858 | . . 15 6 5 2 . . 16 . 76 58 142 538 Partial Spotted 105 | . . 15 . 45 . . . 15 . 30 . . . Lose Combat Pursuer 900 | . . 90 30 105 135 105 15 90 45 210 15 15 45 Influence Decreases 8124 | 20 . 377 224 503 489 464 43 589 421 1642 1009 558 1785 Entered New Map 1510 | . . . 84 46 279 124 33 59 41 12 279 128 425 Time Decay 5199 | 20 . 367 130 409 150 310 10 340 242 1281 590 340 1010 Lost Part 1235 | . . 10 10 48 40 30 . 190 138 269 60 90 350 Lost Ally 180 | . . . . . 20 . . . . 80 80 . . Squads Dispatched 54 | . . 1 . 7 2 . . 1 1 12 3 8 19 Investigation 7 | . . 1 . 2 1 . . . . 2 . . 1 Extermination 21 | . . . . 3 . . . 1 1 8 2 1 5 Reinforcement 16 | . . . . 2 1 . . . . 2 1 7 3 Assault 10 | . . . . . . . . . . . . . 10 Garrison . | . . . . . . . . . . . . . . Intercept . | . . . . . . . . . . . . . . Searches Triggered . | . . . . . . . . . . . . . . Construction Impeded 3 | . . . . . . . . . . . . 2 1 Haulers Reinforced 3 | . . . . . 1 . . . . . . 1 1 Active Scanning Responses . | . . . . . . . . . . . . . . Cargo Convoy Interrupts 1 | . . . . . . . . . . . . . 1 Stealth | -11 -10 -9 -8 -7 -6 -6 -6 -5 -4 -4 -3 -3 -2 --------- Run | Yrd Mat Mat Mat Fac Fac Low Low Fac Fac Arm Res Tes Res Distress Signals 27 | . . 5 2 4 . . . . . 5 . 3 8 Communications Jammed . | . . . . . . . . . . . . . . Distress Signals . | . . . . . . . . . . . . . . Times Spotted 411 | . 1 23 9 34 14 16 3 26 16 90 29 35 115 Peak Tracking Total 15 | . 1 4 3 6 5 6 3 6 6 6 5 8 15 Tactical Retreats 40 | . . 4 2 5 7 2 1 4 1 10 1 1 2 Traps | -11 -10 -9 -8 -7 -6 -6 -6 -5 -4 -4 -3 -3 -2 ------- Run | Yrd Mat Mat Mat Fac Fac Low Low Fac Fac Arm Res Tes Res Traps Triggered 6 | . . . . . . . . 2 1 2 . . 1 Indirectly . | . . . . . . . . . . . . . . Trap Hack Attempts . | . . . . . . . . . . . . . . Triggered . | . . . . . . . . . . . . . . Disarmed . | . . . . . . . . . . . . . . Reprogrammed . | . . . . . . . . . . . . . . Reused . | . . . . . . . . . . . . . . Traps Extracted . | . . . . . . . . . . . . . . Installed . | . . . . . . . . . . . . . . Triggered . | . . . . . . . . . . . . . . Machines | -11 -10 -9 -8 -7 -6 -6 -6 -5 -4 -4 -3 -3 -2 ---------- Run | Yrd Mat Mat Mat Fac Fac Low Low Fac Fac Arm Res Tes Res Machines Disabled 24 | . . . . . . . . . . 8 . 7 9 Max in Single Turn 4 | . . . . . . . . . . 4 . 2 1 Garrison Access 4 | . . . . 1 . . . 1 2 . . . . Machines Repaired . | . . . . . . . . . . . . . . Machines Dismantled . | . . . . . . . . . . . . . . Machines Sabotaged . | . . . . . . . . . . . . . . Overloaded Fab Kills . | . . . . . . . . . . . . . . Hacking | -11 -10 -9 -8 -7 -6 -6 -6 -5 -4 -4 -3 -3 -2 --------- Run | Yrd Mat Mat Mat Fac Fac Low Low Fac Fac Arm Res Tes Res Machines Accessed 43 | . . 6 4 9 2 . . 1 4 9 2 3 3 Terminals 20 | . . 5 3 4 1 . . . 1 5 . 1 . Fabricators 8 | . . . . 1 . . . . . 3 1 1 2 Repair Stations 8 | . . 1 1 3 1 . . . 1 . . . 1 Recycling Units 1 | . . . . . . . . . . 1 . . . Scanalyzers . | . . . . . . . . . . . . . . Garrison Access 6 | . . . . 1 . . . 1 2 . 1 1 . Total Hacks 106 | . . 23 14 22 10 . . 1 8 16 2 4 6 Successful 64 | . . 16 7 18 8 . . 1 5 6 . 1 2 Failed 42 | . . 7 7 4 2 . . . 3 10 2 3 4 Catastrophic 5 | . . . . . . . . . . 3 1 . 1 Database Lockouts . | . . . . . . . . . . . . . . Manual 20 | . . 6 6 4 4 . . . . . . . . Terminals 47 | . . 14 11 6 5 . . . 1 9 . 1 . Fabricators 16 | . . . . 3 . . . . . 6 1 1 5 Repair Stations 29 | . . 9 3 9 5 . . . 2 . . . 1 Recycling Units 1 | . . . . . . . . . . 1 . . . Scanalyzers . | . . . . . . . . . . . . . . Garrison Access 13 | . . . . 4 . . . 1 5 . 1 2 . Terminal Hacks 15 | . . 4 3 2 2 . . . 1 3 . . . Record 1 | . . . . . . . . . 1 . . . . Robot Analysis 2 | . . 1 . 1 . . . . . . . . . Terminal Index 1 | . . . 1 . . . . . . . . . . Locate Traps 9 | . . 3 2 1 . . . . . 3 . . . Recall Investigation 1 | . . . . . 1 . . . . . . . . Registered Components 1 | . . . . . 1 . . . . . . . . Fabricator Hacks 8 | . . . . 2 . . . . . 3 . 1 2 Network Status 1 | . . . . 1 . . . . . . . . . Load Schematic 1 | . . . . . . . . . . . . . 1 Build 6 | . . . . 1 . . . . . 3 . 1 1 Repair Station Hacks 25 | . . 7 2 9 5 . . . 2 . . . . Scan Component 14 | . . 4 1 5 3 . . . 1 . . . . Repair 11 | . . 3 1 4 2 . . . 1 . . . . Recycling Unit Hacks . | . . . . . . . . . . . . . . Scanalyzer . | . . . . . . . . . . . . . . Garrison Access Hacks 4 | . . . . 1 . . . 1 2 . . . . Seal Access 4 | . . . . 1 . . . 1 2 . . . . Unauthorized Hacks 12 | . . 5 2 4 1 . . . . . . . . Terminals 12 | . . 5 2 4 1 . . . . . . . . Skim 12 | . . 5 2 4 1 . . . . . . . . Fabricators . | . . . . . . . . . . . . . . Repair Stations . | . . . . . . . . . . . . . . Recycling Units . | . . . . . . . . . . . . . . Scanalyzers . | . . . . . . . . . . . . . . Garrison Access . | . . . . . . . . . . . . . . Data Cores Recovered 3 | . . . 1 . . . . . 1 . . . 1 Used . | . . . . . . . . . . . . . . Hacking Detections 28 | . . 4 3 5 1 . . . 2 7 2 2 2 Full Trace Events 6 | . . 1 . 2 1 . . . . 1 . . 1 Feedback Events . | . . . . . . . . . . . . . . Feedback Blocked . | . . . . . . . . . . . . . . Robot Schematics Acquired 2 | . . . . . . . . . . . . 2 . Robots Built 4 | . . . . 2 . . . . . 2 . . . Authchips . | . . . . . . . . . . . . . . Time 233 | . . . . 81 . . . . . 152 . . . Total Robot Build Rating 12 | . . . . 2 . . . . . 10 . . . Part Schematics Acquired 7 | . . . . . . . . . . . . 7 . Parts Built 3 | . . . . . . . . . . 2 . 1 . Authchips . | . . . . . . . . . . . . . . Time 331 | . . . . . . . . . . 127 . 111 93 Total Part Build Rating 25 | . . . . . . . . . . 16 . 9 . Parts Repaired 11 | . . 3 1 4 2 . . . 1 . . . . Time 466 | . . 124 30 176 114 . . . 22 . . . . Parts Recycled . | . . . . . . . . . . . . . . Recycled Matter . | . . . . . . . . . . . . . . Retrieved Matter . | . . . . . . . . . . . . . . Retrieved Components . | . . . . . . . . . . . . . . Parts Scanalyzed . | . . . . . . . . . . . . . . Part Schematics Acquired . | . . . . . . . . . . . . . . Parts Damaged . | . . . . . . . . . . . . . . Bothacking | -11 -10 -9 -8 -7 -6 -6 -6 -5 -4 -4 -3 -3 -2 ------------ Run | Yrd Mat Mat Mat Fac Fac Low Low Fac Fac Arm Res Tes Res Used RIF Installer . | . . . . . . . . . . . . . . Robots Hacked . | . . . . . . . . . . . . . . Non-combat . | . . . . . . . . . . . . . . Combat . | . . . . . . . . . . . . . . Robot Hacks Applied . | . . . . . . . . . . . . . . Relay Couplers Released 4 | . . . . . . . . . . . . 4 . Programmers 4 | . . . . . . . . . . . . 4 . Fabnet Peak Effective % . | . . . . . . . . . . . . . . Robots Rewired 11 | . . . . . . . . . . 11 . . . Allies Hacked 1 | . . . . . . . . . . 1 . . . Hacks Repelled . | . . . . . . . . . . . . . . Allies | -11 -10 -9 -8 -7 -6 -6 -6 -5 -4 -4 -3 -3 -2 -------- Run | Yrd Mat Mat Mat Fac Fac Low Low Fac Fac Arm Res Tes Res Total Allies 15 | . . . . 2 . . . . . 13 . . . Largest Group 6 | . . . . 2 2 . . . . 6 6 . . Highest-Rated Group 232 | . . . . 20 20 . . . . 232 232 . . Highest-Rated Ally 56 | . . . . 10 10 . . . . 56 56 . . Total Orders . | . . . . . . . . . . . . . . Ally Attacks 79 | . . . . . . . . . . 67 12 . . Total Damage 2979 | . . . . . . . . . . 2505 474 . . Kills 14 | . . . . . . . . . . 10 4 . . Allies Corrupted . | . . . . . . . . . . . . . . Allies Melted . | . . . . . . . . . . . . . . Intel | -11 -10 -9 -8 -7 -6 -6 -6 -5 -4 -4 -3 -3 -2 ------- Run | Yrd Mat Mat Mat Fac Fac Low Low Fac Fac Arm Res Tes Res Active Infowar (turns) 2006 | 17 131 777 174 . . . . 476 364 67 . . . Seismic 1099 | 17 131 777 174 . . . . . . . . . . Cloaking 797 | . . . . . . . . 378 352 67 . . . Jamming 352 | . . . . . . . . 98 216 38 . . . Robot Analysis Total 2 | . . 1 . 1 . . . . . . . . . Derelict Logs Recovered 2 | . . . . . . 2 . . . . . . . Drone Launches . | . . . . . . . . . . . . . . Drone Recoveries . | . . . . . . . . . . . . . . Exploration | -11 -10 -9 -8 -7 -6 -6 -6 -5 -4 -4 -3 -3 -2 ------------- Run | Yrd Mat Mat Mat Fac Fac Low Low Fac Fac Arm Res Tes Res Turns Passed 11722 | 179 131 794 264 894 307 639 24 697 884 3003 1190 682 2034 Spaces Moved 9352 | 94 104 537 328 942 293 1230 24 858 876 1930 780 366 990 Core 8 | 1 . . . . . . . 1 6 . . . . Treads 211 | 35 . . . . . . . . 2 . . . 174 Legs 3775 | 58 104 69 . . . . . . 427 1155 780 366 816 Wheels . | . . . . . . . . . . . . . . Hover 4881 | . . 468 328 942 293 1230 24 821 . 775 . . . Flight 477 | . . . . . . . . 36 441 . . . . Fastest Speed 27 | 50 120 42 38 38 38 38 43 27 27 38 113 120 120 Average Speed 80 | 134 120 72 38 40 41 41 43 48 72 103 118 120 131 Slowest Speed 400 | 160 120 250 38 230 102 105 43 150 160 250 192 190 400 Overloaded Moves . | . . . . . . . . . . . . . . Propulsion Burnouts . | . . . . . . . . . . . . . . Robots Hopped . | . . . . . . . . . . . . . . Potential Cave-ins 2 | . . . . . . . . . . . . . 2 Cave-ins Triggered 2 | . . . . 1 . . . . . . . . 1 Exploration Rate (%) 27 | 6 27 30 27 22 7 90 5 17 13 64 21 36 22 Regions Visited 13 Branch Regions 4 Pre-discovered Areas . | . . . . . . . . . . . . . . Known Exits Taken . | . . . . . . . . . . . . . . Unknown Exits Taken 13 | 1 1 1 1 1 1 1 1 1 1 1 1 1 . Scrap Searched 3 | . . . . . . 3 . . . . . . . Spaces Dug 58 | . . 10 6 6 2 3 . 8 . 11 3 . 9 Terrain Destroyed 402 | . . 12 6 6 2 3 . 8 . 35 29 75 226 Melee 46 | . . 10 6 6 2 3 . 8 . 11 . . . Projectile 133 | . . . . . . . . . . 18 29 8 78 AOE 165 | . . 2 . . . . . . . 6 . 12 145 Terrain Rammed . | . . . . . . . . . . . . . . Walls Destroyed . | . . . . . . . . . . . . . . Machines Disabled . | . . . . . . . . . . . . . . Actions | -11 -10 -9 -8 -7 -6 -6 -6 -5 -4 -4 -3 -3 -2 --------- Run | Yrd Mat Mat Mat Fac Fac Low Low Fac Fac Arm Res Tes Res Total 11938 | 118 106 848 427 1294 421 1310 32 1013 1038 2550 915 485 1381 Wait 833 | . . 184 45 177 72 26 4 19 46 147 26 5 82 Move 9338 | 93 103 536 327 941 292 1229 23 857 875 1929 779 365 989 Hop . | . . . . . . . . . . . . . . Pick Up 175 | 4 1 16 10 20 5 7 1 14 15 38 12 11 21 Fast Attach 182 | 7 . 14 1 8 4 4 . 14 21 54 6 12 37 Attach 111 | . . 1 2 9 5 3 1 19 8 24 9 7 23 Detach 28 | . . . . 2 2 2 . 4 5 8 . 2 3 Swap 136 | 2 . 9 7 15 6 2 1 5 5 27 12 15 30 Drop 213 | . . 26 7 22 4 10 . 13 12 55 12 21 31 Fire 403 | 12 2 25 . . . . . . . 100 58 47 159 Melee 464 | . . 37 28 100 31 27 2 68 51 118 . . 2 Ram . | . . . . . . . . . . . . . . Kick 3 | . . . . . . . . . . . 1 . 2 Crush 1 | . . . . . . . . . . . . . 1 Escape Stasis 1 | . . . . . . . . . . . . . 1 Rewire 50 | . . . . . . . . . . 50 . . . Trap . | . . . . . . . . . . . . . . Miscellaneous . | . . . . . . . . . . . . . . Route ------- -11/Scrapyard -10/Materials -9/Materials -8/Materials (discovered 2 exits: *Fac / Sto) -7/Factory (discovered 2 exits: *Fac x2) -6/Factory -6/Lower Caves -6/Lower Caves -5/Factory -4/Factory -4/Armory -3/Research -3/Testing -2/Research History --------- Turn | Location | Event 16 | -11/Scrapyard | Discovered new exit (range 13) 180 | -11/Scrapyard | Entered Materials 291 | -10/Materials | Discovered new exit (range 8) 311 | -10/Materials | Entered another Materials area 311 | -9/Materials | Evolved 2 slots: Propulsion x1, Utility x1 317 | -9/Materials | Build established: Mutant 997 | -9/Materials | Repaired Katana 1005 | -9/Materials | Learned Storage security intel 1059 | -9/Materials | Repaired Aerolev Unit 1086 | -9/Materials | Repaired Propulsion Shielding 1101 | -9/Materials | Discovered new exit (range 2) 1105 | -9/Materials | Entered another Materials area 1105 | -8/Materials | Evolved 2 slots: Propulsion x1, Utility x1 1106 | -8/Materials | Identified exit to Storage 1292 | -8/Materials | Repaired Aerolev Unit 1361 | -8/Materials | Discovered new exit (range 9) 1369 | -8/Materials | Entered Factory 1369 | -7/Factory | Evolved 2 slots: Power x1, Utility x1 1478 | -7/Factory | Build established: Scavenger-Gladiator 1487 | -7/Factory | Repaired Aerolev Unit 1523 | -7/Factory | Crushed by falling debris 1523 | -7/Factory | System corruption reached 10% 1554 | -7/Factory | Lost 4 parts (1p3u) 1841 | -7/Factory | Repaired Great Axe 1873 | -7/Factory | Build established: Scavenger-Mutant 1958 | -7/Factory | Repaired Imp. Ion Engine 2030 | -7/Factory | Repaired Imp. Airjet 2119 | -7/Factory | Discovered new exit (range 15) 2159 | -7/Factory | Discovered new exit (range 12) 2237 | -7/Factory | Fabricated T-07 Excavator (x2) 2263 | -7/Factory | Entered another Factory area 2263 | -6/Factory | Accompanied by 2 allies 2263 | -6/Factory | Evolved 2 slots: Utility x2 2415 | -6/Factory | Repaired Chainsword 2440 | -6/Factory | Lost 4 parts (1p2n1u) 2506 | -6/Factory | Repaired Imp. Airjet 2548 | -6/Factory | Discovered new exit (range 7) 2570 | -6/Factory | Entered Lower Caves 2637 | -6/Lower Caves | Attracted the attention of an 0b10 checkpoint 2743 | -6/Lower Caves | Learned Factory non-interactive machine intel 2746 | -6/Lower Caves | Learned Factory emergency access door positions 2784 | -6/Lower Caves | Found DCF Scrap (11 items) 2823 | -6/Lower Caves | Spotted B-75 Beast 2835 | -6/Lower Caves | Build established: Hacker-Mutant 3202 | -6/Lower Caves | Discovered new exit (range 14) 3209 | -6/Lower Caves | Entered another Lower Caves area 3215 | -6/Lower Caves | Discovered new exit (range 16) 3233 | -6/Lower Caves | Entered Factory 3233 | -5/Factory | Evolved 2 slots: Propulsion x1, Utility x1 3235 | -5/Factory | Loaded intel: 228 non-interactive machine locations 3296 | -5/Factory | Found Powered Armor 3392 | -5/Factory | Lost 3 parts (3n) 3473 | -5/Factory | Lost 4 parts (1p2n1w) 3503 | -5/Factory | Build established: Scavenger-Mutant 3573 | -5/Factory | Lost 6 parts (3n3u) 3574 | -5/Factory | Destroyed 7 combat bots 3916 | -5/Factory | Discovered new exit (range 10) 3930 | -5/Factory | Entered another Factory area 3930 | -4/Factory | Evolved 2 slots: Propulsion x1, Utility x1 3938 | -4/Factory | Lost 4 parts (1p1n2u) 3988 | -4/Factory | Repaired Imp. Medium Armor Plating 4133 | -4/Factory | Discovered new exit (range 8) 4242 | -4/Factory | Lost 14 parts (1p6n6u1w) 4814 | -4/Factory | Entered Armory 4899 | -4/Armory | Lost 4 parts (2n1u1w) 4940 | -4/Armory | Core integrity fell below 50% 4988 | -4/Armory | Lost 10 parts (2p3n4u1w) 5279 | -4/Armory | Build established: Scavenger-Gladiator 5531 | -4/Armory | Found Prototype Launcher 5531 | -4/Armory | Identified Mni. Smartbomb Launcher 5629 | -4/Armory | Build established: Scavenger-Mutant 5783 | -4/Armory | P-70 Sage assimilated allied Assassin 7a 5955 | -4/Armory | Lost 6 parts (1p3n2u) 5989 | -4/Armory | Fabricated E-15 Imp? 6180 | -4/Armory | System corruption reached 10% 6254 | -4/Armory | Lost 5 parts (1p2n2u) 6737 | -4/Armory | Core integrity fell below 20% 6791 | -4/Armory | Lost 4 parts (3n1u) 6872 | -4/Armory | Found Quantum Capacitor 6877 | -4/Armory | Found Quantum Capacitor 7198 | -4/Armory | Found Prototype Launcher 7198 | -4/Armory | Identified Com. Tesla Bomb Launcher 7288 | -4/Armory | Discovered new exit (range 8) 7310 | -4/Armory | Fabricated Adv. Heavy Siege Treads? 7483 | -4/Armory | Fabricated Shield Leg (x1) 7817 | -4/Armory | Entered Research 7817 | -3/Research | Accompanied by 6 allies 7817 | -3/Research | Evolved 2 slots: Weapon x2 8106 | -3/Research | Build established: Scavenger-Gunner 8258 | -3/Research | Found Prototype Processor 8258 | -3/Research | Identified Spectral Analyzer 8511 | -3/Research | Lost 3 allies 8529 | -3/Research | Spotted B-86 Titan 8623 | -3/Research | Lost 3 parts (3u) 8955 | -3/Research | Discovered new exit (range 6) 9007 | -3/Research | Entered Testing 9030 | -3/Testing | Found Prototype Ballistic Cannon 9030 | -3/Testing | Identified Perforator 9194 | -3/Testing | Fabricated Imp. Q-thruster? 9279 | -3/Testing | Scanned by Researcher 9299 | -3/Testing | Destroyed 7 combat bots 9365 | -3/Testing | Destroyed 9 combat bots 9367 | -3/Testing | Lost 4 parts (2n1u1w) 9449 | -3/Testing | Found Prototype Energy Cannon 9452 | -3/Testing | Destroyed 7 combat bots 9504 | -3/Testing | Spotted PX-H2ASQ678YG 9525 | -3/Testing | Destroyed PX-H2ASQ678YG 9534 | -3/Testing | Identified Potential Cannon 9565 | -3/Testing | Found Corrupted Prototype Device 9597 | -3/Testing | Discovered new exit (range 11) 9689 | -3/Testing | Entered Research 9689 | -2/Research | Evolved 2 slots: Utility x2 9973 | -2/Research | Spotted B-90 Cyclops 10046 | -2/Research | Destroyed B-90 Cyclops 10101 | -2/Research | System corruption reached 10% 10689 | -2/Research | First assault squad dispatched 10690 | -2/Research | Crushed by falling debris 10822 | -2/Research | Found Quantum Capacitor 10888 | -2/Research | Cargo convoy interrupted 11001 | -2/Research | Destroyed 12 combat bots 11037 | -2/Research | Lost 3 parts (1p2u) 11054 | -2/Research | System corruption reached 30% 11082 | -2/Research | Found Prototype Device 11082 | -2/Research | Identified Adv. EM Shield 11527 | -2/Research | Destroyed 7 combat bots 11556 | -2/Research | Core integrity fell below 50% 11587 | -2/Research | Destroyed 10 combat bots 11588 | -2/Research | Lost 12 parts (3n5u4w) 11723 | -2/Research | Self-destructed Last Messages --------------- severed. 11711_ Exp. Power Amplifier destroyed. 11712_ Lgt. Quantum Reactor destroyed. 11712_ Adv. Hacking Suite destroyed. 11712_ System corrupted by crushing effect (+3). 11715_ System corrupted: Component data lost. 11715_ Lrg. Storage Unit destroyed. 11715_ Knocked back. 11715_ M-36 Artificer repairs G-73 Enforcer. 11717_ System corrupted: Graviton Cannon jammed. 11717_ M-36 Artificer knocked back. 11717_ B-74 Champion Med. Treads blasted off. 11719_ Knocked back. 11720_ M-36 Artificer destroyed. 11721_ Critical hit (Burn: +37). 11722_ The unstable cave ceiling collapses. 11723_ Myomer Leg destroyed. 11723_ System corrupted by crushing effect (+3). 11723_ Knocked back. Map ----- +----------------------------------------------------+ | ?????????????????????????????????????????????????? | | ?????????????????????????????????????????????????? | | ?????????????????????????????????????????????????? | | ?????????????????????????????????????????????????? | | ?????????????????????????????????????????????????? | | ?????????????????????????????????????????????????? | | ?????????????????????????????????????????????????? | | ?????????????????????????????????????????????????? | | ?????????????????????????????????????????????????? | | ?????????????????????????????????????????????????? | | ?????????????????????????????????????????????????? | | ?????????????????????????????????????????????????? | | ?????????????????????????????????????????????????? | | ?????????????????????????????????????????????????? | | ??????????###############????????????????????????? | | ??????????# #????????????????????????? | | ??????????# #????????????????????????? | | ??????????# #????????????????????????? | | ??????????# #????????????????????????? | | ??????????# #????????????????????????? | | ?????#????# m #????????????????????????? | | ####? ########;##/###*################+#?????????? | | g gglb ????????? | | m]b ????????? | | ? " % % ! ????????? | | ?? "%" % g/g @ *i ????????? | | ??######+##"#####+#;#%##;;##########+##??????????? | | ??# " ;##??????????????????????? | | ??# " ##???????????????????????? | | ### """"""" # "" ####????????????????????? | | #"# """""" """ # #????????????????????? | | ! "* """"" # ###????????????????????? | | ### # #?????????????????????? | | ### = [ #?????????????????????? | | # """"""" # * [ #?????????????????????? | | # """"""" # #?????????????????????? | | # """"""" # # ### #####?????????????????????? | | !#! ! # #### #??????????????????????? | | # # ## ##??????????????????????? | | ############## ###??????????????????????? | | #????????????### ######???????????????????????? | | #??????????????###?????????????????????????????? | | ###??????????????????????????????????????????????? | | | | | | | | | | | | | | | +----------------------------------------------------+ Best States ------------- Heat Dissipation 148 Coolant Potential 100 Energy Generation 73 Energy Capacity 1160 Matter Stores 350 Matter Capacity 350 Sight Range 16 Terrain Scan Density 10 Jamming Range 16 Cloak Strength 2 Power Amplification 80 Additional Mass Support 9 Armor Coverage 1200 Resistance: KI 45 Resistance: TH 45 Resistance: EX 20 Resistance: EM 20 Resistance: I 20 Resistance: S 20 Resistance: P 20 Core Shielding 20 Propulsion Shielding 33 Weapon Shielding 66 Melee Speed Boost 20 Phase Shifting 10 Evasion (%) 72 Targeting Accuracy 8 Melee Accuracy 8 Target Analysis 9 Core Analysis 9 Armor Integrity Analysis 40 Recoil Reduction 6 Energy Filtering 30 Force Boost 30 Offensive Hacking 30 Defensive Hacking 10 Item Schematics ----------------- Cld. Impulse Thruster | -3/Testing | Archive Imp. Diametric Drive | -3/Testing | Archive Exp. Power Shielding | -3/Testing | Archive Adv. Matter Compressor | -3/Testing | Archive Centrium Light Armor Plating | -3/Testing | Archive Exp. EM Disruption Field | -3/Testing | Archive Exp. Energy Well | -3/Testing | Archive Robot Schematics ------------------ A-15 Conveyor | -3/Testing | Archive A-27 Freighter | -3/Testing | Archive Fabricated ------------ T-07 Excavator | x2 | -7/Factory | Preloaded E-15 Imp | x2 | -4/Armory | Preloaded Adv. Heavy Siege Treads | x1 | -4/Armory | Preloaded Shield Leg | x1 | -4/Armory | Preloaded Imp. Q-thruster | x1 | -3/Testing | Preloaded Repaired ---------- Katana | 24% | -9/Materials Aerolev Unit | 71% | -9/Materials Propulsion Shielding | 68% | -9/Materials Aerolev Unit | 62% | -8/Materials Aerolev Unit | 68% | -7/Factory Great Axe | 67% | -7/Factory Imp. Ion Engine | 14% | -7/Factory Imp. Airjet | 25% | -7/Factory Chainsword | 14% | -6/Factory Imp. Airjet | 4% | -6/Factory Imp. Medium Armor Plating | 70% | -4/Factory Alien Tech Used ----------------- None Achievements -------------- Max Potential Melee Specialist Challenges ------------ None Game ------ Seed SystemMinesnifferHumpback Manual? 0 Play Time 03:26:53 Cumulative 43.7 hours Start 2025.08.09 @ 17:38:32 End 2025.08.12 @ 14:59:15 Sessions 9 Manual Loads 0 Difficulty Adventurer Special Mode None Game No. 22 Rogue 0 Adventurer 22 Explorer 0 Win Type - Total 1 Types 1/0/0/0/0/0/0/0/0/0 Lore% 13 Gallery% 37 Achievement% 39 Wizard Run 0 Options --------- Layout 1 ASCII 0 Keyboard 0 Movement Mouse Keybinds 0 Fullscreen 1 Font 24/Smallcaps Map View 25x17 Zoom Use 70% Tactical HUD 1 Map Filters NONE Filters NONE Steam 1 RUN: 5fb408c8-2f64-42f7-8f5b-2c7c0421c1b4